[Event "Titled Tuesday Blitz June 13 Early 2023"]
[White "Kumsiashvili, Nikoloz"]
[Black "Garcia Cuenca, Victor"]
[WhiteFideId "13600621"]
[BlackFideId "2250829"]
[WhiteElo "2299"]
[BlackElo "2329"]
[Result "1/2-1/2"]
[Round "6"]
[TimeControl "180+2"]
[Date "2023.06.13"]
[WhiteClock "0:00:18"]
[BlackClock "0:00:07"]
[Board "89"]

1. c4 {[%clk 0:03:00]}  Nf6 {[%clk 0:02:58]} 2. Nc3 {[%clk 0:02:59]}  g6 {[%clk 0:02:58]} 3. e4 {[%clk 0:02:59]}  d6 {[%clk 0:02:59]} 4. d4 {[%clk 0:02:59]}  Bg7 {[%clk 0:03:00]} 5. Nf3 {[%clk 0:03:00]}  O-O {[%clk 0:03:01]} 6. Be2 {[%clk 0:03:00]}  c5 {[%clk 0:03:01]} 7. d5 {[%clk 0:02:57]}  b5 {[%clk 0:02:59]} 8. cxb5 {[%clk 0:02:57]}  a6 {[%clk 0:02:59]} 9. b6 {[%clk 0:02:45]}  Nbd7 {[%clk 0:02:53]} 10. a4 {[%clk 0:02:43]}  Qxb6 {[%clk 0:02:51]} 11. a5 {[%clk 0:02:41]}  Qa7 {[%clk 0:02:44]} 12. O-O {[%clk 0:02:39]}  Ne8 {[%clk 0:02:41]} 13. Nd2 {[%clk 0:02:36]}  Nc7 {[%clk 0:02:40]} 14. Re1 {[%clk 0:02:15]}  Rb8 {[%clk 0:02:39]} 15. Nc4 {[%clk 0:01:59]}  Nb5 {[%clk 0:02:36]} 16. Qd3 {[%clk 0:01:38]}  Nd4 {[%clk 0:02:31]} 17. Bd1 {[%clk 0:01:38]}  Qc7 {[%clk 0:02:16]} 18. Kh1 {[%clk 0:01:32]}  Rb4 {[%clk 0:01:55]} 19. Na4 {[%clk 0:01:19]}  e6 {[%clk 0:01:50]} 20. Nab6 {[%clk 0:01:15]}  Nxb6 {[%clk 0:01:34]} 21. axb6 {[%clk 0:01:07]}  Rxb6 {[%clk 0:01:21]} 22. Nxb6 {[%clk 0:01:06]}  Qxb6 {[%clk 0:01:22]} 23. dxe6 {[%clk 0:01:04]}  Bxe6 {[%clk 0:01:22]} 24. f4 {[%clk 0:00:55]}  a5 {[%clk 0:01:12]} 25. e5 {[%clk 0:00:52]}  Bf5 {[%clk 0:01:01]} 26. Qc3 {[%clk 0:00:50]}  Ra8 {[%clk 0:00:53]} 27. Bd2 {[%clk 0:00:40]}  dxe5 {[%clk 0:00:43]} 28. fxe5 {[%clk 0:00:37]}  Nc6 {[%clk 0:00:43]} 29. Bf3 {[%clk 0:00:31]}  Re8 {[%clk 0:00:38]} 30. Bf4 {[%clk 0:00:25]}  Nd4 {[%clk 0:00:35]} 31. Be4 {[%clk 0:00:26]}  Bxe4 {[%clk 0:00:26]} 32. Rxe4 {[%clk 0:00:26]}  Ra8 {[%clk 0:00:22]} 33. Be3 {[%clk 0:00:24]}  Ne6 {[%clk 0:00:21]} 34. Rd1 {[%clk 0:00:22]}  h6 {[%clk 0:00:21]} 35. h3 {[%clk 0:00:23]}  a4 {[%clk 0:00:21]} 36. Bg1 {[%clk 0:00:20]}  Qb5 {[%clk 0:00:21]} 37. Rc4 {[%clk 0:00:20]}  Rb8 {[%clk 0:00:20]} 38. Bxc5 {[%clk 0:00:20]}  Qxb2 {[%clk 0:00:20]} 39. Qxb2 {[%clk 0:00:18]}  Rxb2 {[%clk 0:00:21]} 40. Bd6 {[%clk 0:00:19]}  Rb5 {[%clk 0:00:17]} 41. Rc8+ {[%clk 0:00:17]}  Kh7 {[%clk 0:00:16]} 42. Rf1 {[%clk 0:00:18]}  Rb7 {[%clk 0:00:13]} 43. Ra8 {[%clk 0:00:17]}  Nd4 {[%clk 0:00:08]} 44. Rxa4 {[%clk 0:00:15]}  Nf5 {[%clk 0:00:09]} 45. Kh2 {[%clk 0:00:12]}  Rd7 {[%clk 0:00:08]} 46. Ra6 {[%clk 0:00:11]}  Nxd6 {[%clk 0:00:08]} 47. exd6 {[%clk 0:00:12]}  Be5+ {[%clk 0:00:08]} 48. Kh1 {[%clk 0:00:12]}  Kg7 {[%clk 0:00:07]} 49. Rd1 {[%clk 0:00:12]}  Kf6 {[%clk 0:00:07]} 50. g4 {[%clk 0:00:11]}  Ke6 {[%clk 0:00:06]} 51. Kg2 {[%clk 0:00:11]}  Rxd6 {[%clk 0:00:07]} 52. Raxd6+ {[%clk 0:00:10]}  Bxd6 {[%clk 0:00:08]} 53. Kf3 {[%clk 0:00:11]}  Be5 {[%clk 0:00:08]} 54. Re1 {[%clk 0:00:11]}  f6 {[%clk 0:00:08]} 55. Rb1 {[%clk 0:00:11]}  h5 {[%clk 0:00:08]} 56. Rb6+ {[%clk 0:00:11]}  Kf7 {[%clk 0:00:08]} 57. Ke4 {[%clk 0:00:11]}  hxg4 {[%clk 0:00:08]} 58. hxg4 {[%clk 0:00:12]}  g5 {[%clk 0:00:03]} 59. Kf5 {[%clk 0:00:11]}  Kf8 {[%clk 0:00:04]} 60. Rb7 {[%clk 0:00:10]}  Kg8 {[%clk 0:00:03]} 61. Kg6 {[%clk 0:00:10]}  Kf8 {[%clk 0:00:03]} 62. Rf7+ {[%clk 0:00:10]}  Ke8 {[%clk 0:00:03]} 63. Rh7 {[%clk 0:00:09]}  Kf8 {[%clk 0:00:03]} 64. Rf7+ {[%clk 0:00:08]}  Ke8 {[%clk 0:00:03]} 65. Rxf6 {[%clk 0:00:08]}  Bxf6 {[%clk 0:00:03]} 66. Kxf6 {[%clk 0:00:09]}  Kf8 {[%clk 0:00:03]} 67. Kg6 {[%clk 0:00:09]}  Kg8 {[%clk 0:00:04]} 68. Kf6 {[%clk 0:00:10]}  Kf8 {[%clk 0:00:04]} 69. Kxg5 {[%clk 0:00:10]}  Kg7 {[%clk 0:00:05]} 70. Kf5 {[%clk 0:00:11]}  Kf7 {[%clk 0:00:05]} 71. g5 {[%clk 0:00:12]}  Kg7 {[%clk 0:00:05]} 72. g6 {[%clk 0:00:13]}  Kg8 {[%clk 0:00:05]} 73. Kg5 {[%clk 0:00:14]}  Kg7 {[%clk 0:00:06]} 74. Kf5 {[%clk 0:00:14]}  Kg8 {[%clk 0:00:06]} 75. Kf6 {[%clk 0:00:15]}  Kf8 {[%clk 0:00:06]} 76. Kf5 {[%clk 0:00:15]}  Kg7 {[%clk 0:00:06]} 77. Kg5 {[%clk 0:00:15]}  Kg8 {[%clk 0:00:06]} 78. Kh6 {[%clk 0:00:16]}  Kh8 {[%clk 0:00:07]} 79. g7+ {[%clk 0:00:17]}  Kg8 {[%clk 0:00:07]} 80. Kg6 {[%clk 0:00:18]} 1/2-1/2


[Site "https://www.chess.com"]

[Event "Titled Tuesday Blitz June 13 Early 2023"]
[White "Sourath Biswas"]
[Black "Lopez Idarraga, Daniel Eduardo"]
[WhiteFideId "35091484"]
[BlackFideId "4405501"]
[WhiteElo "2171"]
[BlackElo "1980"]
[Result "1/2-1/2"]
[Round "6"]
[TimeControl "180+2"]
[Date "2023.06.13"]
[WhiteClock "0:00:04"]
[BlackClock "0:00:07"]
[Board "90"]

1. d4 {[%clk 0:03:00]}  Nf6 {[%clk 0:02:59]} 2. Nf3 {[%clk 0:02:58]}  g6 {[%clk 0:03:00]} 3. c4 {[%clk 0:02:57]}  Bg7 {[%clk 0:03:00]} 4. g3 {[%clk 0:02:58]}  O-O {[%clk 0:03:00]} 5. Bg2 {[%clk 0:02:59]}  d6 {[%clk 0:03:01]} 6. O-O {[%clk 0:02:59]}  c6 {[%clk 0:03:01]} 7. Nc3 {[%clk 0:02:59]}  Bf5 {[%clk 0:03:02]} 8. Ng5 {[%clk 0:02:55]}  e5 {[%clk 0:02:50]} 9. d5 {[%clk 0:02:39]}  cxd5 {[%clk 0:02:43]} 10. cxd5 {[%clk 0:02:33]}  h6 {[%clk 0:02:42]} 11. e4 {[%clk 0:02:29]}  Bg4 {[%clk 0:02:41]} 12. f3 {[%clk 0:02:29]}  Bc8 {[%clk 0:02:38]} 13. Nh3 {[%clk 0:02:28]}  b5 {[%clk 0:02:26]} 14. Be3 {[%clk 0:02:26]}  b4 {[%clk 0:02:24]} 15. Na4 {[%clk 0:02:26]}  Nbd7 {[%clk 0:02:20]} 16. Rc1 {[%clk 0:02:22]}  Ba6 {[%clk 0:02:19]} 17. Rf2 {[%clk 0:02:22]}  Qa5 {[%clk 0:01:43]} 18. b3 {[%clk 0:02:12]}  Rfc8 {[%clk 0:01:41]} 19. Rfc2 {[%clk 0:02:06]}  Rxc2 {[%clk 0:01:39]} 20. Qxc2 {[%clk 0:01:42]}  Bb5 {[%clk 0:01:39]} 21. Bf1 {[%clk 0:01:34]}  Bxf1 {[%clk 0:01:36]} 22. Kxf1 {[%clk 0:01:29]}  Bf8 {[%clk 0:01:37]} 23. Qd2 {[%clk 0:01:26]}  g5 {[%clk 0:01:25]} 24. Nf2 {[%clk 0:01:21]}  Be7 {[%clk 0:01:23]} 25. Rc6 {[%clk 0:01:19]}  Ne8 {[%clk 0:01:07]} 26. Ng4 {[%clk 0:00:47]}  Kg7 {[%clk 0:01:06]} 27. Bf2 {[%clk 0:00:45]}  Bd8 {[%clk 0:01:04]} 28. Ne3 {[%clk 0:00:44]}  Nb6 {[%clk 0:00:33]} 29. Nf5+ {[%clk 0:00:44]}  Kh7 {[%clk 0:00:34]} 30. Bxb6 {[%clk 0:00:26]}  Bxb6 {[%clk 0:00:27]} 31. Qe2 {[%clk 0:00:19]}  Bc5 {[%clk 0:00:24]} 32. Qc4 {[%clk 0:00:18]}  Ng7 {[%clk 0:00:18]} 33. Nxd6 {[%clk 0:00:17]}  Bxd6 {[%clk 0:00:16]} 34. Rxd6 {[%clk 0:00:18]}  Rb8 {[%clk 0:00:09]} 35. Ra6 {[%clk 0:00:17]}  Qd8 {[%clk 0:00:08]} 36. Rxa7 {[%clk 0:00:18]}  Rc8 {[%clk 0:00:08]} 37. Qe2 {[%clk 0:00:17]}  Rc1+ {[%clk 0:00:08]} 38. Kg2 {[%clk 0:00:17]}  Qc8 {[%clk 0:00:06]} 39. Qa6 {[%clk 0:00:09]}  Rc2+ {[%clk 0:00:06]} 40. Kg1 {[%clk 0:00:05]}  Rc1+ {[%clk 0:00:07]} 41. Kg2 {[%clk 0:00:05]}  Rc2+ {[%clk 0:00:07]} 42. Kg1 {[%clk 0:00:03]}  Rc1+ {[%clk 0:00:07]} 43. Kg2 {[%clk 0:00:04]} 1/2-1/2


[Site "https://www.chess.com"]

[Event "Titled Tuesday Blitz June 13 Early 2023"]
[White "Itkis, Boris"]
[Black "Nagare Kaivalya Sandip"]
[WhiteFideId "1209167"]
[BlackFideId "25957929"]
[WhiteElo "2219"]
[BlackElo "2024"]
[Result "1-0"]
[Round "6"]
[TimeControl "180+2"]
[Date "2023.06.13"]
[WhiteClock "0:00:31"]
[BlackClock "0:00:13"]
[Board "91"]

1. c4 {[%clk 0:03:00]}  Nf6 {[%clk 0:02:58]} 2. Nf3 {[%clk 0:03:01]}  e6 {[%clk 0:02:58]} 3. e3 {[%clk 0:03:01]}  d5 {[%clk 0:02:58]} 4. b3 {[%clk 0:03:01]}  Be7 {[%clk 0:02:56]} 5. Bb2 {[%clk 0:03:01]}  O-O {[%clk 0:02:56]} 6. g3 {[%clk 0:03:02]}  b6 {[%clk 0:02:56]} 7. Bg2 {[%clk 0:03:02]}  Bb7 {[%clk 0:02:55]} 8. O-O {[%clk 0:03:03]}  a5 {[%clk 0:02:56]} 9. Nc3 {[%clk 0:03:02]}  c5 {[%clk 0:02:47]} 10. d3 {[%clk 0:02:51]}  Nc6 {[%clk 0:02:44]} 11. cxd5 {[%clk 0:02:45]}  exd5 {[%clk 0:02:43]} 12. d4 {[%clk 0:02:45]}  Ne4 {[%clk 0:02:20]} 13. Rc1 {[%clk 0:02:28]}  Nxc3 {[%clk 0:02:11]} 14. Bxc3 {[%clk 0:02:25]}  Nb4 {[%clk 0:02:09]} 15. Qd2 {[%clk 0:02:08]}  a4 {[%clk 0:01:58]} 16. dxc5 {[%clk 0:01:50]}  bxc5 {[%clk 0:01:52]} 17. Bxb4 {[%clk 0:01:50]}  cxb4 {[%clk 0:01:53]} 18. Nd4 {[%clk 0:01:50]}  axb3 {[%clk 0:01:49]} 19. axb3 {[%clk 0:01:50]}  Ra3 {[%clk 0:01:45]} 20. Nb5 {[%clk 0:01:04]}  Rxb3 {[%clk 0:01:44]} 21. Qc2 {[%clk 0:01:00]}  Qb6 {[%clk 0:01:15]} 22. Qxb3 {[%clk 0:00:59]}  Qxb5 {[%clk 0:01:15]} 23. Rfd1 {[%clk 0:01:00]}  Rd8 {[%clk 0:01:02]} 24. Rd4 {[%clk 0:00:54]}  Bc5 {[%clk 0:00:57]} 25. Rd2 {[%clk 0:00:53]}  Kf8 {[%clk 0:00:26]} 26. Rcd1 {[%clk 0:00:39]}  Be7 {[%clk 0:00:19]} 27. Bxd5 {[%clk 0:00:39]}  Bxd5 {[%clk 0:00:18]} 28. Rxd5 {[%clk 0:00:39]}  Rxd5 {[%clk 0:00:19]} 29. Rxd5 {[%clk 0:00:39]}  Qe2 {[%clk 0:00:18]} 30. Rf5 {[%clk 0:00:34]}  Qe1+ {[%clk 0:00:17]} 31. Kg2 {[%clk 0:00:33]}  f6 {[%clk 0:00:17]} 32. Rb5 {[%clk 0:00:32]}  Qc3 {[%clk 0:00:13]} 33. Rb8+ {[%clk 0:00:31]} 1-0


[Site "https://www.chess.com"]

[Event "Titled Tuesday Blitz June 13 Early 2023"]
[White "Ezat, Mohamed"]
[Black "sebastianmarinp"]
[WhiteFideId "10600906"]
[WhiteElo "2372"]
[BlackElo "2397"]
[Result "1-0"]
[Round "6"]
[TimeControl "180+2"]
[Date "2023.06.13"]
[WhiteClock "0:00:18"]
[BlackClock "0:00:02"]
[Board "93"]

1. d4 {[%clk 0:02:52]}  Nf6 {[%clk 0:02:59]} 2. c4 {[%clk 0:02:49]}  e6 {[%clk 0:02:59]} 3. Nc3 {[%clk 0:02:50]}  Bb4 {[%clk 0:02:59]} 4. f3 {[%clk 0:02:48]}  c5 {[%clk 0:02:58]} 5. a3 {[%clk 0:02:46]}  Bxc3+ {[%clk 0:02:56]} 6. bxc3 {[%clk 0:02:46]}  O-O {[%clk 0:02:52]} 7. e4 {[%clk 0:02:45]}  d6 {[%clk 0:02:50]} 8. Bd3 {[%clk 0:02:44]}  Nh5 {[%clk 0:02:45]} 9. Ne2 {[%clk 0:02:43]}  Qh4+ {[%clk 0:02:44]} 10. g3 {[%clk 0:02:42]}  Qh3 {[%clk 0:02:43]} 11. Kf2 {[%clk 0:02:42]}  e5 {[%clk 0:02:35]} 12. Be3 {[%clk 0:02:15]}  f5 {[%clk 0:02:18]} 13. Ng1 {[%clk 0:02:04]}  f4 {[%clk 0:01:47]} 14. Nxh3 {[%clk 0:02:01]}  fxe3+ {[%clk 0:01:48]} 15. Kxe3 {[%clk 0:02:01]}  Bxh3 {[%clk 0:01:49]} 16. f4 {[%clk 0:01:11]}  exf4+ {[%clk 0:01:46]} 17. gxf4 {[%clk 0:01:10]}  Nxf4 {[%clk 0:01:44]} 18. Bf1 {[%clk 0:00:56]}  Bd7 {[%clk 0:01:31]} 19. Ra2 {[%clk 0:00:43]}  Nc6 {[%clk 0:01:25]} 20. Rf2 {[%clk 0:00:42]}  Ng6 {[%clk 0:01:05]} 21. Rxf8+ {[%clk 0:00:40]}  Rxf8 {[%clk 0:01:06]} 22. h4 {[%clk 0:00:38]}  Nf4 {[%clk 0:00:48]} 23. h5 {[%clk 0:00:37]}  Ne7 {[%clk 0:00:40]} 24. Rh4 {[%clk 0:00:36]}  Ne6 {[%clk 0:00:40]} 25. Bh3 {[%clk 0:00:35]}  Bc8 {[%clk 0:00:29]} 26. Bxe6+ {[%clk 0:00:33]}  Bxe6 {[%clk 0:00:28]} 27. Rf4 {[%clk 0:00:33]}  Re8 {[%clk 0:00:27]} 28. h6 {[%clk 0:00:31]}  Bxc4 {[%clk 0:00:24]} 29. hxg7 {[%clk 0:00:30]}  Nd5+ {[%clk 0:00:23]} 30. Kf3 {[%clk 0:00:29]}  Nxf4 {[%clk 0:00:21]} 31. Kxf4 {[%clk 0:00:28]}  Kxg7 {[%clk 0:00:20]} 32. Qg4+ {[%clk 0:00:28]}  Kf7 {[%clk 0:00:19]} 33. Qd7+ {[%clk 0:00:28]}  Re7 {[%clk 0:00:19]} 34. Qxd6 {[%clk 0:00:28]}  cxd4 {[%clk 0:00:18]} 35. cxd4 {[%clk 0:00:29]}  Ba6 {[%clk 0:00:16]} 36. e5 {[%clk 0:00:28]}  Re6 {[%clk 0:00:15]} 37. Qd7+ {[%clk 0:00:28]}  Re7 {[%clk 0:00:16]} 38. Qf5+ {[%clk 0:00:28]}  Ke8 {[%clk 0:00:16]} 39. Ke3 {[%clk 0:00:24]}  b6 {[%clk 0:00:14]} 40. d5 {[%clk 0:00:22]}  Bc4 {[%clk 0:00:13]} 41. Kd4 {[%clk 0:00:22]}  Ba2 {[%clk 0:00:12]} 42. e6 {[%clk 0:00:21]}  Rg7 {[%clk 0:00:11]} 43. Qf4 {[%clk 0:00:19]}  Ke7 {[%clk 0:00:10]} 44. Qc7+ {[%clk 0:00:17]}  Kf6 {[%clk 0:00:10]} 45. Qe5+ {[%clk 0:00:18]}  Kg6 {[%clk 0:00:02]} 46. e7 {[%clk 0:00:18]} 1-0


[Site "https://www.chess.com"]

[Event "Titled Tuesday Blitz June 13 Early 2023"]
[White "Garrido, Denis"]
[Black "Perez, Maximiliano"]
[WhiteFideId "601217"]
[BlackFideId "117234"]
[WhiteElo "2349"]
[BlackElo "2334"]
[Result "1-0"]
[Round "6"]
[TimeControl "180+2"]
[Date "2023.06.13"]
[WhiteClock "0:00:11"]
[BlackClock "0:00:33"]
[Board "95"]

1. e4 {[%clk 0:03:00]}  c5 {[%clk 0:02:59]} 2. Nf3 {[%clk 0:03:00]}  Nc6 {[%clk 0:03:00]} 3. Bb5 {[%clk 0:03:00]}  g6 {[%clk 0:03:00]} 4. O-O {[%clk 0:03:00]}  Bg7 {[%clk 0:03:00]} 5. Re1 {[%clk 0:03:00]}  Nf6 {[%clk 0:03:01]} 6. e5 {[%clk 0:03:00]}  Nd5 {[%clk 0:03:01]} 7. Nc3 {[%clk 0:03:01]}  Nc7 {[%clk 0:03:01]} 8. Bxc6 {[%clk 0:03:01]}  dxc6 {[%clk 0:03:02]} 9. Ne4 {[%clk 0:03:01]}  b6 {[%clk 0:03:02]} 10. Nf6+ {[%clk 0:03:01]}  Kf8 {[%clk 0:03:03]} 11. Ne4 {[%clk 0:03:01]}  Bg4 {[%clk 0:03:04]} 12. d3 {[%clk 0:03:01]}  Ne6 {[%clk 0:02:58]} 13. Ned2 {[%clk 0:02:59]}  h5 {[%clk 0:02:56]} 14. h3 {[%clk 0:02:57]}  Bxf3 {[%clk 0:02:56]} 15. Nxf3 {[%clk 0:02:56]}  Qd5 {[%clk 0:02:56]} 16. a4 {[%clk 0:02:52]}  h4 {[%clk 0:02:48]} 17. Re4 {[%clk 0:02:20]}  Rh5 {[%clk 0:02:29]} 18. Qe2 {[%clk 0:01:44]}  Rd8 {[%clk 0:02:17]} 19. b3 {[%clk 0:01:41]}  Nd4 {[%clk 0:02:03]} 20. Nxd4 {[%clk 0:01:40]}  cxd4 {[%clk 0:02:04]} 21. Bf4 {[%clk 0:01:28]}  c5 {[%clk 0:01:59]} 22. Bh2 {[%clk 0:01:17]}  e6 {[%clk 0:01:54]} 23. Re1 {[%clk 0:01:08]}  a6 {[%clk 0:01:53]} 24. Qd2 {[%clk 0:01:04]}  Bh6 {[%clk 0:01:51]} 25. Bf4 {[%clk 0:01:03]}  Kg7 {[%clk 0:01:44]} 26. Bxh6+ {[%clk 0:01:03]}  Rxh6 {[%clk 0:01:45]} 27. Qf4 {[%clk 0:01:02]}  Rdh8 {[%clk 0:01:32]} 28. Qf6+ {[%clk 0:01:00]}  Kg8 {[%clk 0:01:32]} 29. Rg4 {[%clk 0:00:34]}  Qd7 {[%clk 0:01:24]} 30. Ree4 {[%clk 0:00:29]}  Rh5 {[%clk 0:01:19]} 31. Rxh4 {[%clk 0:00:22]}  b5 {[%clk 0:01:11]} 32. axb5 {[%clk 0:00:22]}  axb5 {[%clk 0:01:12]} 33. Rxh5 {[%clk 0:00:22]}  Rxh5 {[%clk 0:01:12]} 34. Re1 {[%clk 0:00:17]}  Rf5 {[%clk 0:01:04]} 35. Qh4 {[%clk 0:00:17]}  Qd5 {[%clk 0:00:59]} 36. Qe4 {[%clk 0:00:17]}  Qxe4 {[%clk 0:00:55]} 37. Rxe4 {[%clk 0:00:18]}  g5 {[%clk 0:00:54]} 38. g4 {[%clk 0:00:18]}  Rf4 {[%clk 0:00:46]} 39. Rxf4 {[%clk 0:00:18]}  gxf4 {[%clk 0:00:46]} 40. Kg2 {[%clk 0:00:19]}  f6 {[%clk 0:00:40]} 41. exf6 {[%clk 0:00:18]}  Kf7 {[%clk 0:00:41]} 42. Kf3 {[%clk 0:00:19]}  e5 {[%clk 0:00:42]} 43. g5 {[%clk 0:00:19]}  Kg6 {[%clk 0:00:41]} 44. h4 {[%clk 0:00:18]}  b4 {[%clk 0:00:40]} 45. Kg4 {[%clk 0:00:18]}  c4 {[%clk 0:00:40]} 46. h5+ {[%clk 0:00:18]}  Kf7 {[%clk 0:00:39]} 47. bxc4 {[%clk 0:00:19]}  e4 {[%clk 0:00:39]} 48. Kf5 {[%clk 0:00:13]}  b3 {[%clk 0:00:36]} 49. g6+ {[%clk 0:00:14]}  Kf8 {[%clk 0:00:33]} 50. h6 {[%clk 0:00:12]}  b2 {[%clk 0:00:33]} 51. g7+ {[%clk 0:00:11]}  Ke8 {[%clk 0:00:34]} 52. g8=Q+ {[%clk 0:00:11]}  Kd7 {[%clk 0:00:35]} 53. Qd5+ {[%clk 0:00:11]}  Kc7 {[%clk 0:00:35]} 54. Qb5 {[%clk 0:00:12]}  e3 {[%clk 0:00:34]} 55. fxe3 {[%clk 0:00:11]}  fxe3 {[%clk 0:00:33]} 56. Qxb2 {[%clk 0:00:11]}  e2 {[%clk 0:00:33]} 57. Qc1 {[%clk 0:00:11]} 1-0


[Site "https://www.chess.com"]

[Event "Titled Tuesday Blitz June 13 Early 2023"]
[White "Weetik, Vjacheslav"]
[Black "Bashkansky, Ethan"]
[WhiteFideId "4153472"]
[BlackFideId "2071533"]
[WhiteElo "2469"]
[BlackElo "2331"]
[Result "1-0"]
[Round "6"]
[TimeControl "180+2"]
[Date "2023.06.13"]
[WhiteClock "0:00:09"]
[BlackClock "0:00:03"]
[Board "97"]

1. d4 {[%clk 0:02:56]}  f5 {[%clk 0:03:00]} 2. g3 {[%clk 0:02:56]}  Nf6 {[%clk 0:03:00]} 3. Bg2 {[%clk 0:02:56]}  g6 {[%clk 0:03:00]} 4. c4 {[%clk 0:02:51]}  Bg7 {[%clk 0:03:00]} 5. Nf3 {[%clk 0:02:52]}  O-O {[%clk 0:03:00]} 6. O-O {[%clk 0:02:52]}  d6 {[%clk 0:03:01]} 7. Nc3 {[%clk 0:02:53]}  Nc6 {[%clk 0:03:00]} 8. d5 {[%clk 0:02:51]}  Na5 {[%clk 0:03:00]} 9. Qd3 {[%clk 0:02:06]}  c5 {[%clk 0:02:59]} 10. Ng5 {[%clk 0:02:02]}  a6 {[%clk 0:02:28]} 11. Ne6 {[%clk 0:01:41]}  Bxe6 {[%clk 0:02:28]} 12. dxe6 {[%clk 0:01:41]}  Rb8 {[%clk 0:02:24]} 13. Bd2 {[%clk 0:01:32]}  b5 {[%clk 0:02:13]} 14. b3 {[%clk 0:01:17]}  b4 {[%clk 0:02:05]} 15. Nd5 {[%clk 0:01:12]}  Nxd5 {[%clk 0:02:03]} 16. Bxd5 {[%clk 0:01:13]}  Bxa1 {[%clk 0:02:02]} 17. Rxa1 {[%clk 0:01:14]}  Rc8 {[%clk 0:01:52]} 18. Qf3 {[%clk 0:01:03]}  Qc7 {[%clk 0:01:45]} 19. h4 {[%clk 0:00:58]}  Nc6 {[%clk 0:01:45]} 20. h5 {[%clk 0:00:50]}  Ne5 {[%clk 0:01:40]} 21. Qf4 {[%clk 0:00:44]}  Qd8 {[%clk 0:01:29]} 22. hxg6 {[%clk 0:00:38]}  Nxg6 {[%clk 0:01:24]} 23. Qh6 {[%clk 0:00:38]}  Rf6 {[%clk 0:01:21]} 24. Bg5 {[%clk 0:00:36]}  Qf8 {[%clk 0:01:20]} 25. Qh5 {[%clk 0:00:32]}  Qg7 {[%clk 0:01:12]} 26. Kg2 {[%clk 0:00:23]}  Rcf8 {[%clk 0:01:08]} 27. Rh1 {[%clk 0:00:23]}  f4 {[%clk 0:01:04]} 28. Bh6 {[%clk 0:00:12]}  Qh8 {[%clk 0:01:04]} 29. g4 {[%clk 0:00:11]}  Ne5 {[%clk 0:00:54]} 30. g5 {[%clk 0:00:07]}  Rxh6 {[%clk 0:00:45]} 31. Qxh6 {[%clk 0:00:06]}  Qg7 {[%clk 0:00:45]} 32. Qh5 {[%clk 0:00:05]}  Rf5 {[%clk 0:00:44]} 33. Kf1 {[%clk 0:00:05]}  Rxg5 {[%clk 0:00:35]} 34. Qe8+ {[%clk 0:00:05]}  Qf8 {[%clk 0:00:35]} 35. Qxf8+ {[%clk 0:00:05]}  Kxf8 {[%clk 0:00:35]} 36. Rxh7 {[%clk 0:00:06]}  a5 {[%clk 0:00:26]} 37. Rh8+ {[%clk 0:00:06]}  Rg8 {[%clk 0:00:26]} 38. Rh4 {[%clk 0:00:06]}  Rg4 {[%clk 0:00:27]} 39. Rh8+ {[%clk 0:00:05]}  Rg8 {[%clk 0:00:27]} 40. Rh7 {[%clk 0:00:06]}  Rg7 {[%clk 0:00:27]} 41. Rh4 {[%clk 0:00:06]}  Rg4 {[%clk 0:00:27]} 42. Rh3 {[%clk 0:00:05]}  Kg7 {[%clk 0:00:24]} 43. e3 {[%clk 0:00:06]}  fxe3 {[%clk 0:00:22]} 44. Rxe3 {[%clk 0:00:06]}  Rd4 {[%clk 0:00:20]} 45. Rh3 {[%clk 0:00:07]}  Rd2 {[%clk 0:00:18]} 46. Kg2 {[%clk 0:00:07]}  Rxa2 {[%clk 0:00:14]} 47. Rg3+ {[%clk 0:00:07]}  Kf6 {[%clk 0:00:14]} 48. Kf1 {[%clk 0:00:06]}  Ra3 {[%clk 0:00:14]} 49. f4 {[%clk 0:00:06]}  Ng6 {[%clk 0:00:11]} 50. Rf3 {[%clk 0:00:03]}  a4 {[%clk 0:00:11]} 51. bxa4 {[%clk 0:00:04]}  Rxf3+ {[%clk 0:00:11]} 52. Bxf3 {[%clk 0:00:04]}  b3 {[%clk 0:00:03]} 53. a5 {[%clk 0:00:05]}  d5 {[%clk 0:00:02]} 54. cxd5 {[%clk 0:00:04]}  Ne5 {[%clk 0:00:02]} 55. fxe5+ {[%clk 0:00:04]}  Kxe5 {[%clk 0:00:03]} 56. d6 {[%clk 0:00:05]}  b2 {[%clk 0:00:03]} 57. d7 {[%clk 0:00:05]}  b1=Q+ {[%clk 0:00:03]} 58. Kg2 {[%clk 0:00:05]}  Qc2+ {[%clk 0:00:03]} 59. Kg3 {[%clk 0:00:06]}  Qg6+ {[%clk 0:00:04]} 60. Kf2 {[%clk 0:00:06]}  Qg8 {[%clk 0:00:04]} 61. a6 {[%clk 0:00:06]}  Qb8 {[%clk 0:00:03]} 62. Bb7 {[%clk 0:00:05]}  Kd6 {[%clk 0:00:01]} 63. a7 {[%clk 0:00:05]}  Qxa7 {[%clk 0:00:01]} 64. d8=Q+ {[%clk 0:00:06]}  Ke5 {[%clk 0:00:02]} 65. Qd5+ {[%clk 0:00:06]}  Kf6 {[%clk 0:00:02]} 66. Qf3+ {[%clk 0:00:06]}  Ke5 {[%clk 0:00:03]} 67. Qe4+ {[%clk 0:00:06]}  Kf6 {[%clk 0:00:03]} 68. Bd5 {[%clk 0:00:07]}  c4+ {[%clk 0:00:02]} 69. Kf3 {[%clk 0:00:07]}  Qa3+ {[%clk 0:00:03]} 70. Kg4 {[%clk 0:00:07]}  Qc1 {[%clk 0:00:02]} 71. Qf5+ {[%clk 0:00:08]}  Kg7 {[%clk 0:00:02]} 72. Qf7+ {[%clk 0:00:07]}  Kh6 {[%clk 0:00:02]} 73. Qf8+ {[%clk 0:00:07]}  Kh7 {[%clk 0:00:02]} 74. Qxe7+ {[%clk 0:00:07]}  Kh6 {[%clk 0:00:02]} 75. Qf6+ {[%clk 0:00:07]}  Kh7 {[%clk 0:00:02]} 76. Be4+ {[%clk 0:00:08]}  Kg8 {[%clk 0:00:03]} 77. Qf7+ {[%clk 0:00:08]}  Kh8 {[%clk 0:00:03]} 78. Qh7# {[%clk 0:00:09]} 1-0


[Site "https://www.chess.com"]